[Event "The Kvibergspelen 2024"]
[Site "Kviberg Park Hotel & Conference, Krutvagen 2, Gothenburg, Sweden"]
[Date "2024.09.06"]
[Round "1.1"]
[White "Havner, Arvid"]
[Black "Kucuksari, Kaan"]
[Result "0-1"]
[TimeControl "15 minutes + 5 seconds per move from move one (Round 1 - 4) / 90 minutes + 30 seconds per move from move one (Round 5 - 8)"]
[BlackTitle "IM"]
[WhiteFideId "1769308"]
[BlackFideId "6380166"]
[WhiteElo "1893"]
[BlackElo "2455"]

1. e4 {[%clk 00:15:09]} c6 {[%clk 00:15:08]} {[%emt 00:00:02]} 2. d4 {[%clk
00:15:11]} {[%emt 00:00:03]} d5 {[%clk 00:15:11]} {[%emt 00:00:02]} 3. exd5
{[%clk 00:15:12]} {[%emt 00:00:04]} cxd5 {[%clk 00:15:14]} {[%emt 00:00:02]} 4.
Bd3 {[%clk 00:15:14]} {[%emt 00:00:03]} Nc6 {[%clk 00:15:15]} {[%emt 00:00:03]}
5. c3 {[%clk 00:15:18]} {[%emt 00:00:01]} Nf6 {[%clk 00:15:17]} {[%emt
00:00:03]} 6. Bf4 {[%clk 00:15:18]} {[%emt 00:00:04]} Bg4 {[%clk 00:15:18]}
{[%emt 00:00:04]} 7. Nf3 {[%clk 00:15:19]} {[%emt 00:00:05]} e6 {[%emt
00:00:04]} 8. Nbd2 {[%clk 00:15:22]} {[%emt 00:00:02]} Bd6 {[%clk 00:15:22]}
{[%emt 00:00:02]} 9. Bxd6 {[%clk 00:15:24]} {[%emt 00:00:03]} Qxd6 {[%clk
00:15:24]} {[%emt 00:00:02]} 10. O-O {[%clk 00:15:26]} {[%emt 00:00:04]} O-O
{[%clk 00:15:26]} {[%emt 00:00:03]} 11. Qb3 {[%clk 00:15:26]} {[%emt 00:00:04]}
Qc7 {[%clk 00:15:27]} {[%emt 00:00:05]} 12. Rae1 {[%clk 00:15:20]} {[%emt
00:00:10]} Rab8 {[%clk 00:15:12]} {[%emt 00:00:20]} 13. Ne5 {[%clk 00:15:05]}
{[%emt 00:00:21]} Nxe5 {[%clk 00:15:13]} {[%emt 00:00:04]} 14. dxe5 {[%clk
00:14:20]} {[%emt 00:00:50]} Nd7 {[%clk 00:15:16]} {[%emt 00:00:02]} 15. f4
{[%clk 00:14:17]} {[%emt 00:00:07]} Nc5 {[%clk 00:14:22]} {[%emt 00:01:00]} 16.
Qc2 {[%clk 00:14:05]} {[%emt 00:00:17]} Nxd3 {[%clk 00:14:25]} {[%emt
00:00:02]} 17. Qxd3 {[%clk 00:14:08]} {[%emt 00:00:01]} Qb6+ {[%clk 00:14:29]}
{[%emt 00:00:02]} 18. Qe3 {[%clk 00:13:09]} {[%emt 00:01:03]} Qxb2 {[%clk
00:14:30]} {[%emt 00:00:06]} 19. h3 {[%clk 00:12:37]} {[%emt 00:00:36]} Bf5
{[%clk 00:14:31]} {[%emt 00:00:03]} 20. g4 {[%clk 00:11:38]} {[%emt 00:01:04]}
Bc2 {[%clk 00:14:31]} {[%emt 00:00:06]} 21. f5 {[%clk 00:10:01]} {[%emt
00:01:41]} Rbc8 {[%clk 00:14:34]} {[%emt 00:00:03]} 22. f6 {[%clk 00:08:08]}
{[%emt 00:01:58]} Qxc3 {[%clk 00:13:33]} {[%emt 00:01:06]} 23. Qg5 {[%clk
00:07:34]} {[%emt 00:00:39]} Qg3+ {[%clk 00:13:34]} {[%emt 00:00:05]} 24. Kh1
{[%clk 00:07:34]} {[%emt 00:00:04]} Qxh3+ {[%clk 00:13:36]} {[%emt 00:00:03]}
25. Kg1 {[%clk 00:07:37]} {[%emt 00:00:02]} Qg3+ {[%clk 00:13:31]} {[%emt
00:00:10]} 26. Kh1 {[%clk 00:07:35]} {[%emt 00:00:07]} Qh3+ {[%clk 00:13:06]}
{[%emt 00:00:30]} 27. Kg1 {[%clk 00:07:25]} {[%emt 00:00:15]} Qh6 {[%clk
00:13:09]} {[%emt 00:00:02]} 28. Qxh6 {[%clk 00:05:24]} {[%emt 00:02:05]} gxh6
{[%clk 00:13:12]} {[%emt 00:00:03]} 29. Rf3 {[%clk 00:05:13]} {[%emt 00:00:16]}
Kh8 {[%clk 00:13:11]} {[%emt 00:00:06]} 30. Rg3 {[%clk 00:03:53]} {[%emt
00:01:25]} Rg8 {[%clk 00:13:15]} {[%emt 00:00:01]} 31. Nf3 {[%clk 00:03:53]}
{[%emt 00:00:04]} Rc3 {[%clk 00:13:16]} {[%emt 00:00:03]} 32. Kf2 {[%clk
00:03:40]} {[%emt 00:00:19]} Be4 {[%clk 00:13:17]} {[%emt 00:00:04]} 33. Nd2
{[%clk 00:01:29]} {[%emt 00:02:17]} Rxg3 {[%clk 00:13:21]} {[%emt 00:00:01]} 34.
Kxg3 {[%clk 00:01:33]} {[%emt 00:00:02]} Bf5 {[%clk 00:13:25]} 0-1

[Event "The Kvibergspelen 2024"]
[Site "Kviberg Park Hotel & Conference, Krutvagen 2, Gothenburg, Sweden"]
[Date "2024.09.06"]
[Round "1.2"]
[White "Sorensen, Hampus"]
[Black "Sandberg, Lucas"]
[Result "1-0"]
[TimeControl "15 minutes + 5 seconds per move from move one (Round 1 - 4) / 90 minutes + 30 seconds per move from move one (Round 5 - 8)"]
[WhiteTitle "IM"]
[WhiteFideId "8703884"]
[BlackFideId "1773712"]
[WhiteElo "2420"]
[BlackElo "1887"]

1. e4 {[%clk 00:15:02]} {[%emt 00:00:07]} c5 {[%clk 00:15:07]} {[%emt
00:00:03]} 2. Nf3 {[%clk 00:15:04]} {[%emt 00:00:04]} d6 {[%clk 00:15:10]}
{[%emt 00:00:02]} 3. d4 {[%clk 00:14:46]} {[%emt 00:00:24]} cxd4 {[%clk
00:15:06]} {[%emt 00:00:09]} 4. Qxd4 {[%clk 00:14:48]} {[%emt 00:00:03]} Nf6
{[%clk 00:14:39]} {[%emt 00:00:30]} 5. Nc3 {[%clk 00:14:37]} {[%emt 00:00:17]}
Nc6 {[%clk 00:14:20]} {[%emt 00:00:23]} 6. Qd3 {[%clk 00:14:28]} {[%emt
00:00:14]} g6 {[%clk 00:13:25]} {[%emt 00:01:01]} 7. Nd5 {[%clk 00:14:24]}
{[%emt 00:00:09]} Bg7 {[%clk 00:13:08]} {[%emt 00:00:22]} 8. c3 {[%clk
00:14:17]} {[%emt 00:00:13]} O-O {[%clk 00:12:49]} {[%emt 00:00:23]} 9. Bg5
{[%clk 00:14:16]} {[%emt 00:00:05]} Nxd5 {[%clk 00:11:33]} {[%emt 00:01:22]} 10.
exd5 {[%clk 00:14:19]} {[%emt 00:00:02]} Bf5 {[%clk 00:10:46]} {[%emt
00:00:52]} 11. Qd2 {[%clk 00:13:39]} {[%emt 00:00:45]} Ne5 {[%clk 00:10:37]}
{[%emt 00:00:13]} 12. Nxe5 {[%clk 00:13:39]} {[%emt 00:00:06]} Bxe5 {[%clk
00:10:19]} {[%emt 00:00:23]} 13. Be2 {[%clk 00:12:33]} {[%emt 00:01:10]} Rc8
{[%clk 00:09:23]} {[%emt 00:01:01]} 14. O-O {[%clk 00:12:31]} {[%emt 00:00:07]}
Re8 {[%clk 00:08:55]} {[%emt 00:00:33]} 15. Rfe1 {[%clk 00:12:03]} {[%emt
00:00:34]} Qa5 {[%clk 00:06:29]} {[%emt 00:02:31]} 16. Bf1 {[%clk 00:11:44]}
{[%emt 00:00:23]} a6 {[%clk 00:05:09]} {[%emt 00:01:26]} 17. a4 {[%clk
00:10:40]} {[%emt 00:01:09]} Bf6 {[%clk 00:03:24]} {[%emt 00:01:49]} 18. Be3
{[%clk 00:09:45]} {[%emt 00:01:01]} e5 {[%clk 00:03:02]} {[%emt 00:00:27]} 19.
b4 {[%clk 00:08:35]} {[%emt 00:01:16]} Qc7 {[%clk 00:02:53]} {[%emt 00:00:12]}
20. c4 {[%clk 00:08:35]} {[%emt 00:00:06]} a5 {[%clk 00:02:37]} {[%emt
00:00:21]} 21. bxa5 {[%clk 00:08:31]} {[%emt 00:00:08]} Qd7 {[%clk 00:01:59]}
{[%emt 00:00:41]} 22. c5 {[%clk 00:08:03]} {[%emt 00:00:38]} Qe7 {[%clk
00:02:01]} {[%emt 00:00:01]} 23. a6 {[%clk 00:07:22]} {[%emt 00:00:46]} e4
{[%clk 00:01:14]} {[%emt 00:00:51]} 24. axb7 {[%clk 00:06:52]} {[%emt
00:00:37]} Qxb7 {[%clk 00:01:13]} {[%emt 00:00:06]} 25. c6 {[%clk 00:06:55]}
{[%emt 00:00:02]} 1-0

[Event "The Kvibergspelen 2024"]
[Site "Kviberg Park Hotel & Conference, Krutvagen 2, Gothenburg, Sweden"]
[Date "2024.09.06"]
[Round "1.3"]
[White "Torkkeli, Ted"]
[Black "Arman, Deniz"]
[Result "0-1"]
[TimeControl "15 minutes + 5 seconds per move from move one (Round 1 - 4) / 90 minutes + 30 seconds per move from move one (Round 5 - 8)"]
[BlackTitle "FM"]
[WhiteFideId "1737724"]
[BlackFideId "6302106"]
[WhiteElo "1884"]
[BlackElo "2348"]

1. e4 {[%clk 00:15:08]} {[%emt 00:00:03]} Nf6 {[%clk 00:15:07]} {[%emt
00:00:04]} 2. e5 {[%clk 00:15:10]} Nd5 {[%clk 00:15:10]} {[%emt 00:00:02]} 3.
d4 {[%clk 00:15:14]} {[%emt 00:00:02]} d6 {[%clk 00:15:13]} {[%emt 00:00:02]} 4.
c4 {[%clk 00:15:17]} {[%emt 00:00:02]} Nb6 {[%clk 00:15:16]} {[%emt 00:00:01]}
5. exd6 {[%clk 00:15:19]} {[%emt 00:00:02]} exd6 {[%clk 00:15:19]} {[%emt
00:00:02]} 6. Bd3 {[%clk 00:15:16]} {[%emt 00:00:08]} Be7 {[%clk 00:15:21]}
{[%emt 00:00:03]} 7. Ne2 {[%clk 00:15:16]} {[%emt 00:00:05]} O-O {[%clk
00:15:23]} {[%emt 00:00:03]} 8. O-O {[%clk 00:15:17]} {[%emt 00:00:04]} Be6
{[%clk 00:13:39]} {[%emt 00:01:49]} 9. Qc2 {[%clk 00:14:05]} {[%emt 00:01:18]}
h6 {[%clk 00:11:50]} {[%emt 00:01:53]} 10. Nd2 {[%clk 00:13:16]} {[%emt
00:00:54]} Re8 {[%clk 00:09:22]} {[%emt 00:02:34]} 11. Nf4 {[%clk 00:11:08]}
{[%emt 00:02:13]} Bd7 {[%clk 00:09:17]} {[%emt 00:00:09]} 12. Nf3 {[%clk
00:10:38]} {[%emt 00:00:36]} Bg4 {[%clk 00:08:42]} {[%emt 00:00:39]} 13. Be4
{[%clk 00:10:12]} {[%emt 00:00:32]} Nc6 {[%clk 00:08:39]} {[%emt 00:00:07]} 14.
Be3 {[%clk 00:08:34]} {[%emt 00:01:44]} Bf6 {[%clk 00:08:42]} {[%emt 00:00:02]}
15. h3 {[%clk 00:07:44]} {[%emt 00:00:54]} Bxf3 {[%clk 00:07:38]} {[%emt
00:01:10]} 16. Bxf3 {[%clk 00:07:47]} {[%emt 00:00:02]} Nxd4 {[%clk 00:07:38]}
{[%emt 00:00:05]} 17. Bxd4 {[%clk 00:07:49]} {[%emt 00:00:02]} Bxd4 {[%clk
00:07:41]} {[%emt 00:00:02]} 18. Bxb7 {[%clk 00:07:35]} {[%emt 00:00:20]} Rb8
{[%clk 00:07:42]} {[%emt 00:00:04]} 19. Bc6 {[%clk 00:07:19]} {[%emt 00:00:21]}
Re7 {[%clk 00:05:35]} {[%emt 00:02:12]} 20. Rae1 {[%clk 00:06:28]} {[%emt
00:00:56]} Rxe1 {[%clk 00:03:24]} {[%emt 00:02:15]} 21. Rxe1 {[%clk 00:06:30]}
{[%emt 00:00:02]} Qh4 {[%clk 00:03:02]} {[%emt 00:00:27]} 22. Re4 {[%clk
00:03:55]} {[%emt 00:02:42]} Qf6 {[%clk 00:02:33]} {[%emt 00:00:35]} 23. b3
{[%clk 00:03:27]} {[%emt 00:00:31]} g6 {[%clk 00:00:53]} {[%emt 00:01:45]} 24.
Qe2 {[%clk 00:02:41]} {[%emt 00:00:51]} Kg7 {[%clk 00:00:40]} {[%emt 00:00:18]}
25. Qg4 {[%clk 00:02:19]} {[%emt 00:00:27]} Kh7 {[%clk 00:00:43]} {[%emt
00:00:02]} 26. h4 {[%clk 00:01:25]} {[%emt 00:00:59]} h5 {[%clk 00:00:33]}
{[%emt 00:00:15]} 27. Qg5 {[%clk 00:01:14]} {[%emt 00:00:17]} Rf8 {[%clk
00:00:11]} {[%emt 00:00:28]} 28. Qxf6 {[%clk 00:01:11]} {[%emt 00:00:07]} Bxf6
{[%clk 00:00:14]} {[%emt 00:00:01]} 29. g3 {[%clk 00:01:08]} {[%emt 00:00:08]}
Kg7 {[%clk 00:00:16]} {[%emt 00:00:03]} 30. Nd5 {[%clk 00:01:05]} {[%emt
00:00:08]} Nxd5 {[%clk 00:00:20]} {[%emt 00:00:02]} 31. cxd5 {[%clk 00:01:08]}
{[%emt 00:00:02]} a5 {[%clk 00:00:07]} {[%emt 00:00:18]} 32. Kf1 {[%clk
00:00:59]} {[%emt 00:00:14]} Bc3 {[%clk 00:00:10]} {[%emt 00:00:02]} 33. Re7
{[%clk 00:00:44]} {[%emt 00:00:20]} Bb4 {[%clk 00:00:06]} {[%emt 00:00:09]} 34.
Rxc7 {[%clk 00:00:40]} {[%emt 00:00:09]} Rb8 {[%clk 00:00:10]} {[%emt
00:00:02]} 35. Re7 {[%clk 00:00:40]} {[%emt 00:00:04]} Kf6 {[%clk 00:00:11]}
{[%emt 00:00:05]} 36. Re4 {[%clk 00:00:36]} {[%emt 00:00:07]} Bc5 {[%clk
00:00:14]} {[%emt 00:00:03]} 37. f3 {[%clk 00:00:39]} {[%emt 00:00:02]} Kg7
{[%clk 00:00:13]} {[%emt 00:00:06]} 38. Ke2 {[%clk 00:00:42]} {[%emt 00:00:02]}
Rd8 {[%clk 00:00:11]} {[%emt 00:00:08]} 39. g4 {[%clk 00:00:43]} {[%emt
00:00:03]} Rh8 {[%clk 00:00:10]} {[%emt 00:00:06]} 40. g5 {[%clk 00:00:24]}
{[%emt 00:00:23]} Rb8 {[%clk 00:00:13]} {[%emt 00:00:02]} 41. Kd3 {[%clk
00:00:25]} {[%emt 00:00:06]} Kf8 {[%clk 00:00:17]} {[%emt 00:00:01]} 42. Ke2
{[%clk 00:00:24]} {[%emt 00:00:05]} Bb4 {[%clk 00:00:12]} {[%emt 00:00:10]} 43.
Kd3 {[%clk 00:00:24]} {[%emt 00:00:05]} Bc5 {[%clk 00:00:11]} {[%emt 00:00:06]}
44. Ke2 {[%clk 00:00:26]} {[%emt 00:00:03]} Rc8 {[%clk 00:00:08]} {[%emt
00:00:08]} 45. Kd3 {[%clk 00:00:27]} {[%emt 00:00:03]} Rc7 {[%clk 00:00:09]}
{[%emt 00:00:05]} 46. Re8+ {[%clk 00:00:28]} {[%emt 00:00:04]} Kg7 {[%clk
00:00:13]} {[%emt 00:00:01]} 47. Re4 {[%clk 00:00:29]} {[%emt 00:00:04]} Bb4
{[%clk 00:00:13]} {[%emt 00:00:05]} 48. Kc4 {[%clk 00:00:23]} {[%emt 00:00:11]}
f6 {[%clk 00:00:09]} {[%emt 00:00:09]} 49. Re6 {[%clk 00:00:08]} {[%emt
00:00:20]} fxg5 {[%clk 00:00:11]} {[%emt 00:00:03]} 50. hxg5 {[%clk 00:00:12]}
{[%emt 00:00:02]} Bd2 {[%clk 00:00:08]} {[%emt 00:00:07]} 51. Rxd6 {[%clk
00:00:15]} {[%emt 00:00:02]} Bxg5 {[%clk 00:00:11]} {[%emt 00:00:02]} 52. Re6
{[%clk 00:00:12]} {[%emt 00:00:07]} h4 {[%clk 00:00:07]} {[%emt 00:00:10]} 53.
Re2 {[%clk 00:00:13]} {[%emt 00:00:03]} Bf4 {[%clk 00:00:11]} {[%emt 00:00:01]}
54. Kb5 {[%clk 00:00:12]} {[%emt 00:00:07]} h3 {[%clk 00:00:14]} {[%emt
00:00:01]} 55. Re1 {[%clk 00:00:13]} {[%emt 00:00:05]} h2 {[%clk 00:00:17]}
{[%emt 00:00:03]} 56. Kxa5 {[%clk 00:00:13]} {[%emt 00:00:03]} Bd2+ {[%clk
00:00:20]} {[%emt 00:00:03]} 0-1

[Event "The Kvibergspelen 2024"]
[Site "Kviberg Park Hotel & Conference, Krutvagen 2, Gothenburg, Sweden"]
[Date "2024.09.06"]
[Round "1.4"]
[White "Lindberg, Bengt"]
[Black "Westlund, Tim"]
[Result "1-0"]
[TimeControl "15 minutes + 5 seconds per move from move one (Round 1 - 4) / 90 minutes + 30 seconds per move from move one (Round 5 - 8)"]
[WhiteTitle "IM"]
[WhiteFideId "1700359"]
[BlackFideId "1754718"]
[WhiteElo "2337"]
[BlackElo "1882"]

1. e4 {[%clk 00:15:06]} {[%emt 00:00:03]} e5 {[%clk 00:15:05]} {[%emt
00:00:06]} 2. Nf3 {[%clk 00:15:07]} {[%emt 00:00:04]} Nf6 {[%clk 00:15:06]}
{[%emt 00:00:03]} 3. Nc3 {[%clk 00:14:48]} {[%emt 00:00:24]} Nc6 {[%clk
00:15:07]} {[%emt 00:00:06]} 4. a3 {[%emt 00:00:57]} d5 {[%clk 00:14:38]} 5.
Bb5 {[%clk 00:14:21]} {[%emt 00:00:13]} Nxe4 {[%clk 00:06:50]} {[%emt
00:07:53]} 6. Qe2 {[%clk 00:10:13]} {[%emt 00:04:12]} Nxc3 {[%clk 00:05:12]}
{[%emt 00:01:44]} 7. Qxe5+ {[%clk 00:10:14]} {[%emt 00:00:04]} Be7 {[%clk
00:04:43]} {[%emt 00:00:32]} 8. Qxc3 {[%clk 00:08:54]} {[%emt 00:01:27]} O-O
{[%clk 00:03:39]} {[%emt 00:01:09]} 9. Bxc6 {[%clk 00:08:45]} {[%emt 00:00:14]}
bxc6 {[%clk 00:03:40]} {[%emt 00:00:05]} 10. Qxc6 {[%clk 00:08:46]} {[%emt
00:00:03]} Bg4 {[%clk 00:03:39]} {[%emt 00:00:06]} 11. Ne5 {[%clk 00:08:35]}
{[%emt 00:00:16]} Bf5 {[%clk 00:03:32]} {[%emt 00:00:12]} 12. O-O {[%clk
00:07:57]} {[%emt 00:00:42]} Re8 {[%clk 00:03:16]} {[%emt 00:00:22]} 13. d4
{[%clk 00:06:37]} {[%emt 00:01:25]} Qd6 {[%clk 00:02:25]} {[%emt 00:00:57]} 14.
Qc3 {[%clk 00:05:33]} {[%emt 00:01:09]} Bf6 {[%clk 00:01:58]} {[%emt 00:00:31]}
15. Bf4 {[%clk 00:05:32]} {[%emt 00:00:06]} Qe7 {[%clk 00:01:51]} {[%emt
00:00:13]} 16. Rfe1 {[%clk 00:05:15]} {[%emt 00:00:21]} Qd8 {[%clk 00:01:42]}
{[%emt 00:00:14]} 17. b4 {[%clk 00:04:57]} {[%emt 00:00:22]} Bxe5 {[%clk
00:01:41]} {[%emt 00:00:07]} 18. Bxe5 {[%clk 00:04:47]} {[%emt 00:00:15]} Bd7
{[%clk 00:01:03]} {[%emt 00:00:44]} 19. Qg3 {[%clk 00:04:29]} {[%emt 00:00:22]}
f6 {[%clk 00:00:58]} {[%emt 00:00:10]} 20. Bxc7 {[%clk 00:04:22]} {[%emt
00:00:12]} Qc8 {[%clk 00:00:58]} {[%emt 00:00:05]} 21. c3 {[%clk 00:04:08]}
{[%emt 00:00:19]} Qb7 {[%clk 00:00:54]} {[%emt 00:00:09]} 22. Bd6 {[%clk
00:03:51]} {[%emt 00:00:22]} Re6 {[%clk 00:00:50]} {[%emt 00:00:08]} 23. Rxe6
{[%clk 00:03:52]} {[%emt 00:00:06]} Bxe6 {[%clk 00:00:52]} {[%emt 00:00:02]} 24.
a4 {[%clk 00:03:47]} {[%emt 00:00:10]} Rc8 {[%clk 00:00:52]} {[%emt 00:00:05]}
25. Bc5 {[%clk 00:03:48]} {[%emt 00:00:04]} Re8 {[%clk 00:00:47]} {[%emt
00:00:10]} 26. Re1 {[%clk 00:03:43]} {[%emt 00:00:10]} Qd7 {[%clk 00:00:45]}
{[%emt 00:00:06]} 27. b5 {[%clk 00:03:41]} {[%emt 00:00:08]} Bf7 {[%clk
00:00:35]} {[%emt 00:00:15]} 28. Rxe8+ {[%clk 00:03:36]} {[%emt 00:00:11]} Qxe8
{[%clk 00:00:38]} {[%emt 00:00:01]} 29. Qe3 {[%clk 00:03:39]} {[%emt 00:00:02]}
Qxe3 {[%clk 00:00:25]} {[%emt 00:00:18]} 30. fxe3 {[%clk 00:03:42]} {[%emt
00:00:03]} Bg6 {[%clk 00:00:29]} 31. Bxa7 {[%clk 00:03:44]} {[%emt 00:00:03]}
Bd3 {[%clk 00:00:31]} {[%emt 00:00:02]} 32. Kf2 {[%clk 00:03:37]} {[%emt
00:00:12]} Bc4 {[%clk 00:00:34]} {[%emt 00:00:03]} 33. Ke1 {[%clk 00:03:37]}
{[%emt 00:00:05]} f5 {[%clk 00:00:37]} {[%emt 00:00:02]} 34. Kd2 {[%clk
00:03:41]} g6 {[%clk 00:00:39]} {[%emt 00:00:03]} 35. Kc1 {[%clk 00:03:44]} Kf7
{[%clk 00:00:43]} {[%emt 00:00:02]} 36. Kb2 {[%clk 00:03:48]} {[%emt 00:00:01]}
Ke6 {[%clk 00:00:47]} {[%emt 00:00:01]} 37. Ka3 {[%clk 00:03:51]} {[%emt
00:00:01]} Kd7 {[%clk 00:00:51]} {[%emt 00:00:01]} 38. Kb4 {[%clk 00:03:55]}
{[%emt 00:00:02]} Kc8 {[%clk 00:00:53]} {[%emt 00:00:03]} 39. Kc5 {[%clk
00:03:56]} {[%emt 00:00:03]} Kb7 {[%clk 00:00:57]} {[%emt 00:00:02]} 40. Bb6
{[%clk 00:03:59]} {[%emt 00:00:01]} h6 {[%clk 00:00:59]} {[%emt 00:00:03]} 41.
Bd8 {[%clk 00:04:00]} {[%emt 00:00:05]} h5 {[%clk 00:00:43]} {[%emt 00:00:21]}
42. a5 {[%clk 00:03:58]} {[%emt 00:00:06]} Kb8 {[%clk 00:00:27]} {[%emt
00:00:22]} 43. Kb6 {[%clk 00:03:58]} {[%emt 00:00:05]} Ka8 {[%clk 00:00:26]}
{[%emt 00:00:05]} 44. a6 {[%clk 00:03:58]} {[%emt 00:00:05]} Bf1 {[%clk
00:00:21]} {[%emt 00:00:08]} 45. g3 {[%clk 00:04:02]} {[%emt 00:00:03]} Bc4
{[%clk 00:00:11]} {[%emt 00:00:15]} 46. Ka5 {[%clk 00:04:06]} {[%emt 00:00:02]}
Kb8 {[%clk 00:00:09]} {[%emt 00:00:06]} 47. b6 {[%clk 00:04:05]} {[%emt
00:00:06]} Ka8 {[%clk 00:00:11]} {[%emt 00:00:03]} 48. Be7 {[%clk 00:04:00]}
{[%emt 00:00:10]} g5 {[%clk 00:00:10]} {[%emt 00:00:06]} 49. Bxg5 {[%clk
00:03:57]} {[%emt 00:00:08]} h4 {[%clk 00:00:11]} {[%emt 00:00:05]} 50. gxh4
{[%clk 00:03:59]} {[%emt 00:00:03]} f4 {[%clk 00:00:11]} {[%emt 00:00:05]} 51.
exf4 {[%clk 00:03:59]} {[%emt 00:00:05]} Kb8 {[%clk 00:00:15]} 52. f5 {[%clk
00:04:00]} {[%emt 00:00:04]} Bd3 {[%clk 00:00:18]} {[%emt 00:00:03]} 53. f6
{[%clk 00:04:01]} {[%emt 00:00:04]} 1-0

[Event "The Kvibergspelen 2024"]
[Site "Kviberg Park Hotel & Conference, Krutvagen 2, Gothenburg, Sweden"]
[Date "2024.09.06"]
[Round "1.5"]
[White "Andersson, Stig"]
[Black "Ostlund, Joar"]
[Result "0-1"]
[TimeControl "15 minutes + 5 seconds per move from move one (Round 1 - 4) / 90 minutes + 30 seconds per move from move one (Round 5 - 8)"]
[BlackTitle "FM"]
[WhiteFideId "1731971"]
[BlackFideId "1735020"]
[WhiteElo "1881"]
[BlackElo "2335"]

1. d4 {[%clk 00:15:03]} {[%emt 00:00:07]} d5 {[%clk 00:15:08]} {[%emt
00:00:03]} 2. Nf3 {[%clk 00:15:03]} {[%emt 00:00:04]} Nf6 {[%clk 00:15:10]}
{[%emt 00:00:03]} 3. e3 {[%clk 00:15:02]} {[%emt 00:00:06]} c5 {[%clk
00:15:08]} {[%emt 00:00:08]} 4. c3 {[%clk 00:15:03]} {[%emt 00:00:04]} e6
{[%clk 00:14:59]} {[%emt 00:00:15]} 5. Bd3 {[%clk 00:14:56]} {[%emt 00:00:11]}
Bd6 {[%clk 00:14:11]} {[%emt 00:00:53]} 6. Nbd2 {[%clk 00:14:48]} {[%emt
00:00:14]} Nbd7 {[%clk 00:13:36]} {[%emt 00:00:39]} 7. O-O {[%clk 00:14:41]}
{[%emt 00:00:12]} O-O {[%clk 00:13:10]} {[%emt 00:00:32]} 8. Re1 {[%clk
00:14:11]} {[%emt 00:00:35]} e5 {[%clk 00:12:12]} {[%emt 00:01:03]} 9. e4
{[%clk 00:12:11]} {[%emt 00:02:05]} cxd4 {[%clk 00:03:35]} {[%emt 00:08:42]} 10.
exd5 {[%clk 00:09:29]} {[%emt 00:02:47]} dxc3 {[%clk 00:03:09]} {[%emt
00:00:32]} 11. bxc3 {[%clk 00:09:22]} {[%emt 00:00:12]} Nc5 {[%clk 00:02:28]}
{[%emt 00:00:46]} 12. Ne4 {[%clk 00:07:10]} {[%emt 00:02:16]} Nfxe4 {[%clk
00:02:22]} {[%emt 00:00:12]} 13. Bxe4 {[%clk 00:07:11]} {[%emt 00:00:03]} f5
{[%clk 00:01:30]} {[%emt 00:00:57]} 14. Bc2 {[%clk 00:06:13]} {[%emt 00:01:03]}
e4 {[%clk 00:01:34]} 15. Ng5 {[%emt 00:01:38]} Qf6 {[%clk 00:01:03]} 16. Be3
{[%clk 00:03:33]} {[%emt 00:01:47]} h6 {[%clk 00:00:38]} {[%emt 00:00:30]} 17.
Nh3 {[%clk 00:02:58]} {[%emt 00:00:40]} b6 {[%clk 00:00:30]} {[%emt 00:00:14]}
18. Bd4 {[%clk 00:02:31]} {[%emt 00:00:32]} Be5 {[%clk 00:00:32]} {[%emt
00:00:04]} 19. Nf4 {[%clk 00:02:27]} {[%emt 00:00:07]} Bxd4 {[%clk 00:00:17]}
{[%emt 00:00:22]} 20. cxd4 {[%clk 00:02:14]} {[%emt 00:00:17]} Nb7 {[%clk
00:00:18]} {[%emt 00:00:04]} 21. Bb3 {[%clk 00:02:12]} {[%emt 00:00:07]} Nd6
{[%clk 00:00:20]} {[%emt 00:00:04]} 22. Ne6 {[%clk 00:02:12]} {[%emt 00:00:05]}
Rf7 {[%clk 00:00:17]} {[%emt 00:00:07]} 23. Rc1 {[%clk 00:02:08]} {[%emt
00:00:10]} Bb7 {[%clk 00:00:19]} {[%emt 00:00:02]} 24. Rc7 {[%clk 00:01:33]}
{[%emt 00:00:39]} Rxc7 {[%clk 00:00:15]} {[%emt 00:00:10]} 25. Nxc7 {[%clk
00:01:36]} {[%emt 00:00:03]} Rc8 {[%clk 00:00:18]} {[%emt 00:00:01]} 26. Ne6
{[%clk 00:01:30]} {[%emt 00:00:11]} Nc4 {[%clk 00:00:17]} {[%emt 00:00:06]} 27.
Bxc4 {[%clk 00:01:10]} {[%emt 00:00:25]} Rxc4 {[%clk 00:00:21]} {[%emt
00:00:01]} 28. Qh5 {[%clk 00:00:45]} {[%emt 00:00:30]} Rc8 {[%clk 00:00:14]}
{[%emt 00:00:13]} 29. Nf4 {[%clk 00:00:38]} {[%emt 00:00:12]} g5 {[%clk
00:00:08]} {[%emt 00:00:11]} 30. Qg6+ {[%clk 00:00:11]} {[%emt 00:00:31]} Qxg6
{[%clk 00:00:11]} {[%emt 00:00:02]} 31. Nxg6 {[%clk 00:00:14]} {[%emt
00:00:01]} Kf7 {[%clk 00:00:06]} {[%emt 00:00:10]} 32. Ne5+ {[%clk 00:00:18]}
{[%emt 00:00:02]} Ke7 {[%clk 00:00:08]} {[%emt 00:00:02]} 33. f3 {[%clk
00:00:21]} {[%emt 00:00:02]} Bxd5 {[%clk 00:00:11]} {[%emt 00:00:03]} 34. fxe4
{[%clk 00:00:17]} {[%emt 00:00:08]} Bxe4 {[%clk 00:00:13]} {[%emt 00:00:03]} 35.
h4 {[%clk 00:00:17]} {[%emt 00:00:04]} Rc2 {[%clk 00:00:16]} {[%emt 00:00:02]}
36. Nf3 {[%clk 00:00:07]} {[%emt 00:00:16]} Kf6 {[%clk 00:00:17]} {[%emt
00:00:04]} 37. hxg5+ {[%clk 00:00:09]} {[%emt 00:00:03]} hxg5 {[%clk 00:00:21]}
{[%emt 00:00:02]} 0-1